Cogmind - Beta 14 @@@ ROGUE MODE // 2024.08.16 @ 14:16:33 Player: Adrenozin Result: Destroyed by Y-45 Defender with Beam Rifle Performance ------------- Evolutions (2) 1000 Regions Visited (4) 800 Robots Destroyed (28) 140 Value Destroyed (897) 897 Prototype IDs (4) 80 Alien Tech Used (0) 0 Bonus (233) 233 TOTAL SCORE: 3150 Bonus ------- Pacifist 200 High Alert Combat Kills 33 Cogmind --------- Core Integrity 0/550 Matter 300/300 Energy 100/100 System Corruption 0% Temperature Cool (9) Movement Core (700) Ox13 Location -8/Materials Parts ------- > --- POWER (1) -------- (None) > --- PROPULSION (4) --- (None) > --- UTILITY (4) ------ High-capacity Storage Unit Visual Processing Unit > --- WEAPON (2) ------- (None) > --- INVENTORY (20) --- Light Ion Engine Improved Ion Engine Improved Ion Engine Light Nuclear Core Small Storage Unit Particle Cannon Assault Rifle Shotgun Flail Peak State ------------ > --- POWER ------------ Heavy Ion Engine > --- PROPULSION ------- Aluminum Leg Improved Aluminum Leg Carbon-fiber Leg Carbon-fiber Leg > --- UTILITY ---------- High-capacity Storage Unit High-capacity Matter Pod Visual Processing Unit Hardlight Generator > --- WEAPON ----------- Advanced Beam Cannon Improved Assault Rifle > --- INVENTORY -------- Light Ion Engine Improved Ion Engine Improved Ion Engine Light Nuclear Core Small Storage Unit Particle Cannon Assault Rifle Shotgun Improved Light Cannon Flail [Rating: 26] Favorites ----------- Power Heavy Ion Engine Engine Heavy Ion Engine Propulsion Carbon-fiber Leg Leg Carbon-fiber Leg Utility Visual Processing Unit Device Hardlight Generator Storage High-capacity Matter Pod Processor Visual Processing Unit Weapon Assault Rifle Energy Gun Improved EM Shotgun Energy Cannon Advanced Beam Cannon Ballistic Gun Assault Rifle Ballistic Cannon Improved Light Cannon Launcher Improved Grenade Launcher Build | -11 -10 -9 -9 -8 ------- Run | Yrd Mat Mat Sto Mat Slots Evolved 4 | . . 2 . 2 Power . | . . . . . Propulsion 2 | . . 1 . 1 Utility 2 | . . 1 . 1 Weapon . | . . . . . Parts Attached 38 | 6 6 11 8 7 Power 4 | 1 . . 2 1 Engine 4 | 1 . . 2 1 Core . | . . . . . Reactor . | . . . . . Propulsion 9 | 2 . 4 2 1 Treads . | . . . . . Leg 9 | 2 . 4 2 1 Wheel . | . . . . . Hover . | . . . . . Flight . | . . . . . Utility 13 | 1 5 4 2 1 Device 2 | . 1 . . 1 Storage 10 | 1 4 3 2 . Processor 1 | . . 1 . . Hackware . | . . . . . Protection . | . . . . . Artifact . | . . . . . Weapon 12 | 2 1 3 2 4 Energy Gun 2 | . 1 1 . . Energy Cannon 2 | . . . 1 1 Ballistic Gun 4 | 2 . . 1 1 Ballistic Cannon 2 | . . 1 . 1 Launcher 2 | . . 1 . 1 Special Weapon . | . . . . . Impact Weapon . | . . . . . Slashing Weapon . | . . . . . Piercing Weapon . | . . . . . Special Melee Weapon . | . . . . . Unidentified Prototypes 4 | . . 1 . 3 Parts Lost 14 | . . . 3 11 Power 1 | . . . . 1 Propulsion 6 | . . . 2 4 Utility 2 | . . . . 2 Weapon 5 | . . . 1 4 Highest Loss Streak 9 | . . . 2 9 To Critical Strikes . | . . . . . Average Slot Usage (%) 90 | . 95 93 96 80 Engine 10 | . 14 11 11 8 Leg 27 | . 28 26 32 22 Device 3 | . 6 7 . 6 Storage 18 | . 17 14 20 17 Processor 9 | . . 11 11 9 Energy Gun 3 | . 3 8 4 . Energy Cannon 5 | . . . 6 8 Ballistic Gun 9 | . 24 9 7 8 Launcher 1 | . . 2 2 . Peak Build Rating 26 | 6 8 21 21 26 Average Rating 16 | 4 6 14 17 21 On Entrance 10 | . 6 8 21 17 Naked Turns . | . . . . . Heaviest Build 64 | 13 17 23 57 64 Greatest Support 53 | 20 20 45 45 53 Greatest Overweight (x) 13 | . . . 3 13 Average Overweight (x) . | . . . . 1 Largest Inventory Capacity 25 | 8 25 25 20 20 Average Capacity 15 | 6 8 8 16 20 Most Carried 11 | 4 8 8 10 11 Average Carried 8 | 2 5 7 7 10 Final Capacity 20 | 8 8 8 20 20 Final Carried 10 | 4 8 7 10 9 Class Distribution -------------------- 100% | Mutant Dominant Class ---------------- Mutant | -10/Materials Mutant | -9/Materials Mutant | -9/Storage Mutant | -8/Materials Resources | -11 -10 -9 -9 -8 ----------- Run | Yrd Mat Mat Sto Mat Matter Collected 963 | 184 . 52 532 195 Remotely . | . . . . . Salvage Created 967 | . . 58 615 294 Parts 70 | . . 3 50 17 Haulers Intercepted . | . . . . . Recyclers Shooed 1 | . . . 1 . Parts Field Recycled . | . . . . . Retrieved Matter . | . . . . . Parts Self-Destructed . | . . . . . Prevented . | . . . . . Kills | -11 -10 -9 -9 -8 ------- Run | Yrd Mat Mat Sto Mat Combat Hostiles Destroyed 23 | . . 3 15 5 Guns 6 | . . 2 3 1 Cannons 8 | . . . 6 2 AOE 9 | . . 1 6 2 Classes Destroyed 6 | . . 2 4 . Recycler 3 | . . . 2 1 Operator 1 | . . . 1 . Watcher 1 | . . . 1 . Swarmer 6 | . . 2 4 . Grunt 10 | . . . 6 4 Sentry 7 | . . 1 5 1 Best Kill Streak 9 | . . 2 9 2 Combat Bots Only 6 | . . 2 6 2 Max Kills in Single Turn 2 | . . 2 2 2 Gunslinging . | . . . . . Exploded 2 | . . 1 2 2 Melee . | . . . . . Uniques/NPCs Destroyed . | . . . . . Combat | -11 -10 -9 -9 -8 -------- Run | Yrd Mat Mat Sto Mat Hostile Shots Fired 250 | . . 17 93 140 Missed 65 | . . 3 38 24 Damage Taken 2461 | . . 206 689 1566 Core 689 | . . 21 118 550 Absorbed by Shields 224 | . . . . 224 Regen/Repaired (Parts) 27 | . . . 27 . Core Remaining (%) 88 | 100 100 . 65 . Volleys Fired 64 | . 1 6 34 23 Largest 2 | . 2 2 2 2 Hottest 91 | . 85 81 88 91 Shots Fired 117 | . 2 12 60 43 Gun 59 | . 2 6 33 18 Cannon 48 | . . 5 20 23 Launcher 10 | . . 1 7 2 Special . | . . . . . Kinetic 56 | . 1 10 22 23 Thermal 39 | . 1 . 20 18 Explosive 10 | . . 1 7 2 Electromagnetic 12 | . . 1 11 . Robot Hit Streak 10 | . . 10 7 10 Robot Miss Streak 2 | . 2 1 2 2 Penetration Max . | . . . . . Secondary Targets . | . . . . . Shots Hit Robots 71 | . . 10 34 27 Core Hits 41 | . . 4 25 12 Critical Kills 1 | . . . . 1 Critical Parts Destroyed 1 | . . 1 . . Critical Strikes 2 | . . 1 . 1 Destroy 2 | . . 1 . 1 Melee Attacks . | . . . . . Impact . | . . . . . Slashing . | . . . . . Piercing . | . . . . . Sneak Attacks . | . . . . . Combat Hostiles . | . . . . . Follow-up Attacks . | . . . . . Damage Inflicted 1955 | . . 208 1127 620 Guns 474 | . . 76 207 191 Cannons 659 | . . 84 287 288 Explosions 808 | . . 48 623 137 Melee . | . . . . . Ramming 14 | . . . 10 4 Kinetic 482 | . . 150 97 235 Thermal 531 | . . . 287 244 Explosive 808 | . . 48 623 137 Electromagnetic 120 | . . 10 110 . Impact . | . . . . . Slashing . | . . . . . Piercing . | . . . . . Highest Corruption . | . . . . . Average Corruption . | . . . . . Corruption Purged . | . . . . . Corruption Blocked . | . . . . . Overload Shots . | . . . . . Overflow Damage 90 | . . . 90 . Projectiles . | . . . . . Explosions 90 | . . . 90 . Melee . | . . . . . Knockbacks . | . . . . . Impact . | . . . . . Kinetic . | . . . . . Secondary . | . . . . . Self-Inflicted Damage 92 | . . 23 69 . Shots 3 | . . 1 2 . Rammed . | . . . . . Targets Rammed 7 | . . . 6 1 Kicked 7 | . . . 6 1 Crushed . | . . . . . Highest Temperature 219 | . 24 12 88 219 Average Temperature 50 | . 13 4 34 75 Received Heat Transfer 1217 | . . 54 276 887 Siege Activations . | . . . . . Robots Corrupted . | . . . . . Combat Hostiles . | . . . . . Parts Fried . | . . . . . Impact Corruptions . | . . . . . Robots Melted . | . . . . . Combat Hostiles . | . . . . . Parts Melted 3 | . . . 2 1 Heat Transferred 962 | . . . 518 444 Parts Sabotaged . | . . . . . Parts Stolen . | . . . . . Parts Stripped . | . . . . . Power Chain Reactions . | . . . . . Alert | -11 -10 -9 -9 -8 ------- Run | Yrd Mat Mat Sto Mat Peak Influence 481 | . 15 123 481 287 Initial 202 | . . 5 51 202 Average 201 | . 1 24 341 192 Maximum Alert Level 2 | . . . 2 1 Low Security (%) 42 | 100 100 100 9 31 Level 1 43 | . . . 54 68 Level 2 14 | . . . 36 . Level 3 . | . . . . . Level 4 . | . . . . . Level 5 . | . . . . . High Security . | . . . . . Max Security . | . . . . . Squads Dispatched 4 | . . 1 2 1 Investigation 2 | . . 1 1 . Extermination . | . . . . . Reinforcement 2 | . . . 1 1 Assault . | . . . . . Garrison . | . . . . . Intercept . | . . . . . Searches Triggered . | . . . . . Construction Impeded . | . . . . . Haulers Reinforced . | . . . . . Active Scanning Responses . | . . . . . Cargo Convoy Interrupts . | . . . . . Stealth | -11 -10 -9 -9 -8 --------- Run | Yrd Mat Mat Sto Mat Distress Signals 3 | . . . 2 1 Communications Jammed . | . . . . . Distress Signals . | . . . . . Times Spotted 38 | . 1 3 23 11 Peak Tracking Total 7 | . 1 3 7 5 Tactical Retreats 2 | . . 1 . 1 Traps | -11 -10 -9 -9 -8 ------- Run | Yrd Mat Mat Sto Mat Traps Triggered 1 | . . 1 . . Indirectly . | . . . . . Trap Hack Attempts . | . . . . . Triggered . | . . . . . Disarmed . | . . . . . Reprogrammed . | . . . . . Reused . | . . . . . Traps Extracted . | . . . . . Installed . | . . . . . Triggered . | . . . . . Machines | -11 -10 -9 -9 -8 ---------- Run | Yrd Mat Mat Sto Mat Machines Disabled 8 | . . . 7 1 Max in Single Turn 3 | . . . 3 1 Machines Repaired . | . . . . . Machines Dismantled . | . . . . . Machines Sabotaged . | . . . . . Overloaded Fab Kills . | . . . . . Hacking | -11 -10 -9 -9 -8 --------- Run | Yrd Mat Mat Sto Mat Machines Accessed 5 | . 1 . 3 1 Terminals 4 | . 1 . 2 1 Fabricators . | . . . . . Repair Stations 1 | . . . 1 . Recycling Units . | . . . . . Scanalyzers . | . . . . . Garrison Access . | . . . . . Total Hacks 9 | . 1 . 7 1 Successful 6 | . 1 . 5 . Failed 3 | . . . 2 1 Catastrophic 2 | . . . 1 1 Database Lockouts . | . . . . . Manual 5 | . 1 . 3 1 Terminals 5 | . 1 . 3 1 Fabricators . | . . . . . Repair Stations 4 | . . . 4 . Recycling Units . | . . . . . Scanalyzers . | . . . . . Garrison Access . | . . . . . Terminal Hacks 2 | . 1 . 1 . Level Access Points 1 | . 1 . . . Recall Investigation 1 | . . . 1 . Fabricator Hacks . | . . . . . Repair Station Hacks 4 | . . . 4 . Scan Component 2 | . . . 2 . Repair 2 | . . . 2 . Recycling Unit Hacks . | . . . . . Scanalyzer . | . . . . . Garrison Access Hacks . | . . . . . Unauthorized Hacks . | . . . . . Terminals . | . . . . . Fabricators . | . . . . . Repair Stations . | . . . . . Recycling Units . | . . . . . Scanalyzers . | . . . . . Garrison Access . | . . . . . Data Cores Recovered 1 | . . . 1 . Used . | . . . . . Hacking Detections 4 | . 1 . 3 . Full Trace Events 1 | . . . 1 . Feedback Events . | . . . . . Feedback Blocked . | . . . . . Robot Schematics Acquired . | . . . . . Robots Built . | . . . . . Authchips . | . . . . . Time . | . . . . . Total Robot Build Rating . | . . . . . Part Schematics Acquired . | . . . . . Parts Built . | . . . . . Authchips . | . . . . . Time . | . . . . . Total Part Build Rating . | . . . . . Parts Repaired 2 | . . . 2 . Time 64 | . . . 64 . Parts Recycled . | . . . . . Recycled Matter . | . . . . . Retrieved Matter . | . . . . . Retrieved Components . | . . . . . Parts Scanalyzed . | . . . . . Part Schematics Acquired . | . . . . . Parts Damaged . | . . . . . Bothacking | -11 -10 -9 -9 -8 ------------ Run | Yrd Mat Mat Sto Mat Used RIF Installer . | . . . . . Robots Hacked . | . . . . . Non-combat . | . . . . . Combat . | . . . . . Robot Hacks Applied . | . . . . . Relay Couplers Released . | . . . . . Fabnet Peak Effective % . | . . . . . Robots Rewired . | . . . . . Allies Hacked . | . . . . . Hacks Repelled . | . . . . . Allies | -11 -10 -9 -9 -8 -------- Run | Yrd Mat Mat Sto Mat Total Allies . | . . . . . Largest Group . | . . . . . Highest-Rated Group . | . . . . . Highest-Rated Ally . | . . . . . Total Orders . | . . . . . Ally Attacks . | . . . . . Total Damage . | . . . . . Kills . | . . . . . Allies Corrupted . | . . . . . Allies Melted . | . . . . . Intel | -11 -10 -9 -9 -8 ------- Run | Yrd Mat Mat Sto Mat Robot Analysis Total . | . . . . . Derelict Logs Recovered . | . . . . . Drone Launches . | . . . . . Drone Recoveries . | . . . . . Exploration | -11 -10 -9 -9 -8 ------------- Run | Yrd Mat Mat Sto Mat Turns Passed 1762 | 56 159 276 688 583 Spaces Moved 862 | 44 118 169 339 192 Core 18 | 13 . . . 5 Treads . | . . . . . Legs 844 | 31 118 169 339 187 Wheels . | . . . . . Hover . | . . . . . Flight . | . . . . . Fastest Speed 50 | 50 120 120 120 190 Average Speed 161 | 99 120 120 159 243 Slowest Speed 700 | 120 120 120 330 700 Overloaded Moves . | . . . . . Propulsion Burnouts . | . . . . . Robots Hopped . | . . . . . Cave-ins Triggered . | . . . . . Exploration Rate (%) 22 | 3 25 17 50 18 Regions Visited 4 Branch Regions 1 Pre-discovered Areas . | . . . . . Known Exits Taken 1 | . 1 . . . Unknown Exits Taken 3 | 1 . 1 1 . Scrap Searched . | . . . . . Spaces Dug . | . . . . . Terrain Destroyed 66 | . . 10 49 7 Melee . | . . . . . Projectile . | . . . . . AOE 66 | . . 10 49 7 Terrain Rammed . | . . . . . Walls Destroyed . | . . . . . Machines Disabled . | . . . . . Actions | -11 -10 -9 -9 -8 --------- Run | Yrd Mat Mat Sto Mat Total 1108 | 53 131 231 428 265 Wait 102 | . 1 31 30 40 Move 858 | 43 117 168 338 192 Hop . | . . . . . Pick Up 24 | 4 5 6 7 2 Fast Attach 11 | 6 1 1 2 1 Attach 9 | . . 1 5 3 Detach 3 | . . . 3 . Swap 18 | . 5 9 1 3 Drop 12 | . 1 9 2 . Fire 64 | . 1 6 34 23 Melee . | . . . . . Ram . | . . . . . Kick 7 | . . . 6 1 Crush . | . . . . . Escape Stasis . | . . . . . Rewire . | . . . . . Trap . | . . . . . Miscellaneous . | . . . . . Route ------- -11/Scrapyard -10/Materials (discovered 3 exits: *Mat x3) -9/Materials -9/Storage -8/Materials History --------- Turn | Location | Event 11 | -11/Scrapyard | Discovered new exit (range 14) 57 | -11/Scrapyard | Entered Materials 89 | -10/Materials | Identified exit to Materials 216 | -10/Materials | Entered another Materials area 216 | -9/Materials | Evolved 2 slots: Propulsion x1, Utility x1 309 | -9/Materials | Build established: Mutant 363 | -9/Materials | Discovered new exit (range 11) 492 | -9/Materials | Entered Storage 495 | -9/Storage | Repaired Carbon-fiber Leg 521 | -9/Storage | Repaired Ion Engine? 1155 | -9/Storage | Discovered new exit (range 14) 1180 | -9/Storage | Entered Materials 1180 | -8/Materials | Evolved 2 slots: Propulsion x1, Utility x1 1740 | -8/Materials | Core integrity fell below 50% 1753 | -8/Materials | Core integrity fell below 20% 1762 | -8/Materials | Lost 9 parts (1p2n2u4w) 1763 | -8/Materials | Destroyed by Y-45 Defender with Beam Rifle Last Messages --------------- 01713_ K-01 Serf collects debris. 01715_ Critical hit (Burn: +37). 01716_ K-01 Serf collects debris. 01719_ R-06 Scavenger collects Imp. Heat Sink. 01721_ Grenade Launcher destroyed. 01722_ K-01 Serf collects debris. 01722_ R-06 Scavenger collects Lgt. Nuclear Core. 01723_ Imp. Light Cannon destroyed. 01724_ K-01 Serf collects debris. 01725_ R-06 Scavenger collects Particle Gun. 01726_ Hvy. Ion Engine destroyed. 01727_ K-01 Serf collects debris. 01729_ R-06 Scavenger collects Lgt. Nuclear Core. 01731_ Carbon-fiber Leg destroyed. 01731_ Hcp. Matter Pod destroyed. 01742_ Critical hit (Burn: +37). 01745_ Purification Channel disabled. 01752_ Critical hit (Burn: +37). Map ----- +----------------------------------------------------+ | ????????????????????????????? | | ????????????????????????????? | | ????????????????????????????? | | ????????????????????????????? | | ????????????????????????????? | | ????????????????????????????? | | ????????????????????????????? | | ????????????????????????????? | | ????????????????????????????? | | ????????????????????????????? | | ????????????????????????????? | | ????????????????????# ????? | | ????????????????????# ????? | | ????????????????????# ????? | | ????????????????????# #???? | | ?######?##??????????# #???? | | ?# ! ?? #??????????# #???? | | ?# "? #??????????# #???? | | ?# g""" #??????????# #???? | | ## "" #??????????# #???? | | ? """ #??????????+ +???? | | ?# "" #??????????# #???? | | ?# ! """ #??????????# #???? | | ?# """ #??????????# ^#???? | | ?# Y "" #??????????# ^##### | | ?# @ " #??????????# | | ?#! g #??????????# | | ?######+######### ## % | | ?????# *% ##### | | ?????# % #???? | | ?????#"" "" #???? | | ?????#"T """ ##### | | ?????#"" " # ! | | ?????# # | | ?????# # " | | ???? + # ####### # " | | ???? # #######?????# # ! " | | ?????# ????????????# # | | ?????# ????????????# # | | ?????# ????????????# ##### | | ?????# ????????????# #???? | | ?????# ????????????# #???? | | ?????# ????????????# #???? | | ?????# ?????????????# #???? | | ?????# ?????????????? #???? | | ?????? ?????????????? ????? | | ????????????????????? ????? | | ????????????????????????????? | | ????????????????????????????? | | ????????????????????????????? | +----------------------------------------------------+ Best States ------------- Heat Dissipation 31 Energy Generation 14 Energy Capacity 280 Matter Stores 500 Matter Capacity 500 Sight Range 18 Terrain Scan Range 14 Terrain Scan Density 10 Evasion (%) 55 Item Schematics ----------------- None Robot Schematics ------------------ None Fabricated ------------ Nothing Alien Tech Used ----------------- None Achievements -------------- Oops Challenges ------------ None Game ------ Seed HugeReinforcedClaws Manual? 0 Play Time 00:38:21 Cumulative 8.0 hours Start 2024.08.16 @ 13:38:11 End 2024.08.16 @ 14:16:33 Sessions 1 Manual Loads 0 Difficulty Rogue Special Mode None Game No. 11 Rogue 11 Adventurer 0 Explorer 0 Win Type - Total 0 Types 0/0/0/0/0/0/0/0/0 Lore% 6 Gallery% 10 Achievement% 10 Wizard Run 0 Options --------- Layout 1 ASCII 0 Keyboard 1 Movement Numpad Keybinds 1 Fullscreen 1 Font 32/SmallcapsGlow Map View 50x35 Zoom Use 0% Tactical HUD 1 Map Filters NONE Filters NONE Steam 1 RUN: fbf4f260-b38c-486a-b32b-587aa19fe389